fUST/lending_fUST_20251002
["ID","MTS","AMOUNT","RATE_DAILY","PERIOD"]
[388723752,1759335068342,-1104.24,0.00023561,2]
[388723753,1759335068352,-2984.12,0.00023561,2]
[388723754,1759335068362,-1866.99,0.00023561,2]
[388723755,1759335068372,-1374.41,0.00023561,2]
[388723756,1759335068382,-500.0,0.00023561,2]
[388723757,1759335068391,-600.0,0.00023562,2]
[388723758,1759335068401,-487.0,0.00023562,2]
[388723759,1759335068413,-820.55230436,0.00023567,2]
[388723760,1759335068433,-168.0,0.00023592,2]
[388723761,1759335068443,-250.0,0.000236,10]
[388723762,1759335068452,-168.0,0.00023627,2]
[388723763,1759335068461,-168.0,0.0002363,2]
[388723764,1759335068474,-405.8369216,0.00023637,2]
[388723765,1759335068484,-522.3879089,0.000237,14]
[388723766,1759335068493,-250.0,0.000237,10]
[388723767,1759335068503,-660.0,0.00023777,2]
[388723768,1759335068512,-1013.86,0.00023791,2]
[388723769,1759335068522,-2062.08,0.00023791,2]
[388723770,1759335068531,-500.0,0.00023791,2]
[388723771,1759335068541,-1521.58,0.00023791,2]
[388723772,1759335068550,-311.218736,0.000238,10]
[388723773,1759335068560,-153.566605,0.00023825,7]
[388723774,1759335068570,-312.76391059,0.00023835,2]
[388723775,1759335068580,-500.0,0.00023835,2]
[388723776,1759335068589,-684.19,0.00023835,2]
[388723777,1759335068598,-500.0,0.00023835,2]
[388723778,1759335068607,-290.21749607,0.00023835,2]
[388723779,1759335068616,-905.05,0.00023835,2]
[388723780,1759335068626,-602.37,0.00023835,2]
[388723781,1759335068635,-635.93,0.00023835,2]
[388723782,1759335068644,-625.0,0.00023835,2]
[388723783,1759335068654,-500.0,0.00023835,2]
[388723784,1759335068663,-500.0,0.00023835,2]
[388723785,1759335068673,-539.8,0.00023835,2]
[388723786,1759335068682,-1062.22,0.00023835,2]
[388723787,1759335068692,-1377.59,0.00023835,2]
[388723788,1759335068702,-500.0,0.00023835,2]
[388723789,1759335068711,-759.48,0.00023835,2]
[388723790,1759335068722,-475.64,0.00023835,2]
[388723791,1759335068732,-500.0,0.00023835,2]
[388723792,1759335068741,-1321.83,0.00023835,2]
[388723793,1759335068751,-802.43,0.00023835,2]
[388723794,1759335068761,-500.0,0.00023835,2]
[388723795,1759335068771,-218.88,0.00023835,2]
[388723796,1759335068780,-646.41,0.00023835,2]
[388723797,1759335068790,-1135.08,0.00023835,2]
[388723798,1759335068799,-712.18,0.00023835,2]
[388723799,1759335068809,-729.36,0.00023835,2]
[388723800,1759335068820,-700.69,0.00023835,2]
[388723801,1759335068834,-500.15,0.00023835,2]
[388723802,1759335068844,-1425.73,0.00023835,2]
[388723803,1759335068853,-537.26,0.00023835,2]
[388723804,1759335068863,-500.0,0.00023835,2]
[388723805,1759335068874,-500.0,0.00023835,2]
[388723806,1759335068883,-500.0,0.00023835,2]
[388723807,1759335068894,-3405.88,0.00023835,2]
[388723808,1759335068906,-1179.53,0.00023835,2]
[388723809,1759335068916,-1218.29,0.00023835,2]
[388723810,1759335068926,-500.0,0.00023835,2]
[388723811,1759335068936,-927.39,0.00023835,2]
[388723812,1759335068945,-896.28,0.00023835,2]
[388723813,1759335068955,-500.0,0.00023835,2]
[388723814,1759335068967,-500.0,0.00023835,2]
[388723815,1759335068977,-1845.75,0.00023835,2]
[388723816,1759335068987,-696.0,0.00023835,2]
[388723817,1759335068998,-1315.22,0.00023835,2]
[388723818,1759335069007,-500.0,0.00023835,2]
[388723819,1759335069017,-500.0,0.00023835,2]
[388723820,1759335069027,-2639.23,0.00023835,2]
[388723821,1759335069036,-504.31,0.00023835,2]
[388723822,1759335069046,-500.0,0.00023835,2]
[388723823,1759335069056,-1397.47,0.00023835,2]
[388723824,1759335069066,-786.61,0.00023835,2]
[388723825,1759335069075,-500.0,0.00023835,2]
[388723826,1759335069084,-6859.71,0.00023835,2]
[388723827,1759335069094,-500.0,0.00023835,2]
[388723828,1759335069104,-1394.86,0.00023835,2]
[388723829,1759335069115,-848.92,0.00023835,2]
[388723830,1759335069124,-1705.81,0.00023835,2]
[388723831,1759335069133,-818.92,0.00023835,2]
[388723832,1759335069143,-500.0,0.00023835,2]
[388723833,1759335069154,-670.79,0.00023835,2]
[388723834,1759335069164,-857.73,0.00023835,2]
[388723835,1759335069174,-500.0,0.00023835,2]
[388723836,1759335069184,-643.98,0.00023835,2]
[388723837,1759335069194,-500.0,0.00023835,2]
[388723838,1759335069204,-1015.09,0.00023835,2]
[388723839,1759335069215,-870.52,0.00023835,2]
[388723840,1759335069225,-610.48,0.00023835,2]
[388723841,1759335069234,-774.99,0.00023835,2]
[388723842,1759335069244,-500.0,0.00023835,2]
[388723843,1759335069254,-692.94,0.00023835,2]
[388723844,1759335069264,-500.0,0.00023835,2]
[388723845,1759335069274,-943.16,0.00023835,2]
[388723846,1759335069283,-500.0,0.00023835,2]
[388723847,1759335069293,-500.0,0.00023835,2]
[388723848,1759335069304,-613.54,0.00023835,2]
[388723849,1759335069313,-1171.23,0.00023835,2]
[388723850,1759335069322,-1988.09,0.00023835,2]
[388723851,1759335069331,-1268.9,0.00023835,2]
[388723852,1759335069340,-696.81,0.00023835,2]
[388723853,1759335069349,-1090.51,0.00023835,2]
[388723854,1759335069359,-2196.17,0.00023835,2]
[388723855,1759335069368,-500.0,0.00023835,2]
[388723856,1759335069377,-3394.81,0.00023835,2]
[388723857,1759335069386,-952.1,0.00023835,2]
[388723858,1759335069395,-774.39,0.00023835,2]
[388723859,1759335069405,-556.67,0.00023835,2]
[388723860,1759335069414,-500.0,0.00023835,2]
[388723861,1759335069422,-863.24,0.00023835,2]
[388723862,1759335069431,-729.16,0.00023835,2]
[388723863,1759335069441,-1104.24,0.00023835,2]
[388723864,1759335069450,-2984.12,0.00023835,2]
[388723865,1759335069459,-1866.99,0.00023835,2]
[388723866,1759335069469,-1374.41,0.00023835,2]
[388723867,1759335069480,-500.0,0.00023835,2]
[388723868,1759335069490,-487.0,0.00023836,2]
[388723869,1759335069499,-4500.0,0.00023856,2]
[388723870,1759335069508,-188.0,0.00023863,11]
[388723871,1759335069518,-700.0,0.00023876,2]
[388723872,1759335069528,-170396.69255332,0.00024,2]
[388723874,1759335089979,332.24327402,0.00019078,2]
[388723875,1759335090007,4667.75672598,0.00019078,2]
[388723876,1759335176553,5332.25327402,0.00018615,2]
[388723877,1759335176580,10000.01,0.00018615,2]
[388723878,1759335176605,2675.64250728,0.00018615,2]
[388723879,1759335190339,7324.36749272,0.00018978,2]
[388723880,1759335190367,10000.01,0.00018978,2]
[388723881,1759335190395,10000.01,0.00018978,2]
[388723882,1759335190422,10000.01,0.00018978,2]
[388723883,1759335190450,10000.01,0.00018978,2]
[388723884,1759335190476,10000.01,0.00018978,2]
[388723885,1759335190503,10000.01,0.00018978,2]
[388723886,1759335190530,7219.28614846,0.00018978,2]
[388723887,1759335199735,2780.72385154,0.00019078,2]
[388723888,1759335199765,2219.27614846,0.00019078,2]
[388723889,1759335222928,5000.0,0.00019078,2]
[388723891,1759335291735,259.8903133,0.00018344,2]
[388723892,1759335332331,150.0,0.00019,2]
[388723901,1759335462756,215.566615,0.00018344,2]
[388723902,1759335476076,5000.0,0.00019078,2]
[388723903,1759335483992,4634.443385,0.00019078,2]
[388723904,1759335484019,365.556615,0.00019078,2]
[388723905,1759335492236,5000.0,0.00019078,2]
[388723906,1759335508653,4634.453385,0.00019078,2]
[388723907,1759335508678,365.546615,0.00019078,2]
[388723908,1759335516503,5000.0,0.00019078,2]
[388723909,1759335524630,4634.463385,0.00019078,2]
[388723910,1759335524654,365.536615,0.00019078,2]
[388723911,1759335532525,5000.0,0.00019078,2]
[388723912,1759335541238,4634.473385,0.00019078,2]
[388723913,1759335541264,365.526615,0.00019078,2]
[388723914,1759335549823,5000.0,0.00019078,2]
[388723915,1759335558164,4634.483385,0.00019078,2]
[388723916,1759335558192,365.516615,0.00019078,2]
[388723918,1759335573642,5000.0,0.00019078,2]
[388723919,1759335581444,4634.493385,0.00019078,2]
[388723920,1759335581471,365.506615,0.00019078,2]
[388723922,1759335604763,5000.0,0.00019078,2]
[388723923,1759335627257,5000.0,0.00019078,2]
[388723924,1759335650289,0.01,0.00019078,2]
[388723925,1759335650321,4999.99,0.00019078,2]
[388723927,1759335663275,1000.0,0.00028767,120]
[388723928,1759335672926,5000.0,0.00019078,2]
[388723929,1759335682156,0.02,0.00018978,2]
[388723930,1759335682180,691.81680532,0.00018978,2]
[388723931,1759335739448,5000.0,0.00019078,2]
[388723935,1759335856262,4308.19319468,0.00019078,2]
[388723936,1759335856285,691.80680532,0.00019078,2]
[388723937,1759335864691,2906.09228329,0.00019078,2]
[388723938,1759335872757,5000.0,0.00019078,2]
[388723939,1759335880537,1402.11091139,0.00019078,2]
[388723940,1759335880558,3597.88908861,0.00019078,2]
[388723941,1759335888554,2093.90771671,0.00019078,2]
[388723942,1759335896970,4308.21319468,0.00019078,2]
[388723943,1759335896994,691.78680532,0.00019078,2]
[388723945,1759335905659,5000.0,0.00019078,2]
[388723948,1759335920863,4308.22319468,0.00019078,2]
[388723949,1759335920886,691.77680532,0.00019078,2]
[388723951,1759335928687,5000.0,0.00019078,2]
[388723956,1759335944392,4308.23319468,0.00019078,2]
[388723957,1759335944417,691.76680532,0.00019078,2]
[388723958,1759335952433,596.3748093,0.00019078,2]
[388723965,1759335960921,208.81,0.000189,2]
[388723966,1759335967687,5000.0,0.00019078,2]
[388723968,1759335976081,3503.05838538,0.00019078,2]
[388723969,1759335976104,1496.94161462,0.00019078,2]
[388723971,1759335991562,5000.0,0.00019078,2]
[388723972,1759335996179,470.797306,0.00018208,2]
[388723974,1759335999935,3032.27107938,0.00019078,2]
[388723975,1759335999958,1967.72892062,0.00019078,2]
[388723978,1759336015150,5000.0,0.00019078,2]
[388723981,1759336023057,3032.28107938,0.00019078,2]
[388723982,1759336023081,1967.71892062,0.00019078,2]
[388723985,1759336039215,5000.0,0.00019078,2]
[388723986,1759336046978,5000.0,0.00019078,2]
[388723990,1759336062803,0.01,0.00019078,2]
[388723991,1759336062831,4999.99,0.00019078,2]
[388723994,1759336069003,5000.02,0.00018,2]
[388723995,1759336069032,5399.87739567,0.00018,2]
[388723997,1759336070756,4600.13260433,0.00019078,2]
[388723998,1759336070782,399.86739567,0.00019078,2]
[388723999,1759336078921,7114.670488,0.00018276,2]
[388724001,1759336086307,2485.47211633,0.00019078,2]
[388724002,1759336086331,2514.52788367,0.00019078,2]
[388724004,1759336094156,5000.0,0.00019078,2]
[388724007,1759336100694,1005.11074094,0.00015,2]
[388724009,1759336102593,1480.37137539,0.000176,2]
[388724010,1759336102616,627.46582823,0.000176,2]
[388724012,1759336105930,9372.54417177,0.00018276,2]
[388724013,1759336105953,474.04361403,0.00018276,2]
[388724015,1759336110268,5000.0,0.00019078,2]
[388724016,1759336111896,4525.96638597,0.00017,2]
[388724017,1759336111917,10000.01,0.00017,2]
[388724018,1759336111939,2337.62633245,0.00017,2]
[388724019,1759336114244,1213.60885165,0.00015,2]
[388724022,1759336118146,5000.0,0.00019078,2]
[388724024,1759336121482,1448.7748159,0.0001,2]
[388724025,1759336121508,1069.51656768,0.0001,2]
[388724027,1759336123257,1812.84304291,0.0001,2]
[388724028,1759336131997,-1590.15755298,0.00019078,2]
[388724029,1759336133412,5000.0,0.00019078,2]
[388724030,1759336141342,5000.0,0.00019099,2]
[388724031,1759336149958,5000.01,0.00018276,2]
[388724032,1759336149980,501.0042,0.00018276,2]
[388724033,1759336156556,5000.0,0.00019099,2]
[388724034,1759336164500,4499.0058,0.00019099,2]
[388724035,1759336164523,500.9942,0.00019099,2]
[388724036,1759336179626,5000.0,0.00019099,2]
[388724041,1759336187518,4499.0158,0.00019099,2]
[388724042,1759336187541,500.9842,0.00019099,2]
[388724046,1759336203829,5000.0,0.00019099,2]
[388724048,1759336211607,5000.0,0.00019099,2]
[388724050,1759336227287,0.01,0.00019099,2]
[388724051,1759336227309,4999.99,0.00019099,2]
[388724116,1759336233380,-151.0,0.00019099,2]
[388724117,1759336233390,-149.60047145,0.00019099,2]
[388724118,1759336233402,-1.39952855,0.00019099,2]
[388724119,1759336233411,-151.0,0.00019099,2]
[388724120,1759336233421,-151.0,0.00019099,2]
[388724121,1759336233431,-256.39918358,0.000191,2]
[388724122,1759336235291,5000.0,0.00019099,2]
[388724158,1759336238268,-43.60081642,0.000191,2]
[388724161,1759336238279,-300.0,0.00019176,2]
[388724163,1759336238289,-1200.0,0.00019176,2]
[388724165,1759336238299,-500.0,0.00019177,2]
[388724167,1759336238308,-178.16041688,0.00019177,2]
[388724168,1759336238318,-180.73596471,0.00019177,2]
[388724170,1759336238328,-500.0,0.00019177,2]
[388724173,1759336238338,-500.0,0.00019177,2]
[388724177,1759336238348,-500.0,0.00019177,2]
[388724179,1759336238358,-500.0,0.00019177,2]
[388724182,1759336238368,-500.0,0.00019177,2]
[388724184,1759336238378,-500.0,0.00019177,2]
[388724186,1759336238387,-500.0,0.00019177,2]
[388724187,1759336238397,-543.82018499,0.00019177,2]
[388724190,1759336238408,-500.0,0.00019177,2]
[388724191,1759336238417,-242.82385993,0.00019177,2]
[388724328,1759336240308,-257.17614007,0.00019177,2]
[388724329,1759336240318,-500.0,0.00019177,2]
[388724330,1759336240328,-500.0,0.00019177,2]
[388724331,1759336240337,-500.0,0.00019177,2]
[388724332,1759336240346,-409.87385991,0.00019177,2]
[388724517,1759336250523,0.02,0.00019099,2]
[388724518,1759336250546,4999.98,0.00019099,2]
[388724520,1759336258131,1597.70432029,0.00019099,2]
[388724521,1759336266308,300.0,0.00019099,2]
[388724522,1759336274034,3102.32567971,0.00019099,2]
[388724523,1759336274058,1897.67432029,0.00019099,2]
[388724524,1759336296516,5000.0,0.00019099,2]
[388724525,1759336320577,3102.33567971,0.00019099,2]
[388724526,1759336320598,1897.66432029,0.00019099,2]
[388724527,1759336343027,5000.0,0.00019099,2]
[388724528,1759336358532,1135.4993495,0.00019099,2]
[388724529,1759336366979,1966.84633021,0.00019099,2]
[388724530,1759336367002,3033.15366979,0.00019099,2]
[388724531,1759336389442,5000.0,0.00019099,2]
[388724532,1759336394126,224.164637,0.00018342,2]
[388724533,1759336411895,1742.69169321,0.00019099,2]
[388724534,1759336411917,3257.30830679,0.00019099,2]
[388724536,1759336434236,5000.0,0.00019099,2]
[388724537,1759336457186,1742.70169321,0.00019099,2]
[388724538,1759336457208,3257.29830679,0.00019099,2]
[388724540,1759336479621,5000.0,0.00019099,2]
[388724541,1759336502805,5000.0,0.00019099,2]
[388724542,1759336525164,5000.0,0.00019099,2]
[388724543,1759336549236,310.87311598,0.00019099,2]
[388724544,1759336550734,302.75782099,0.000189,2]
[388724545,1759336550763,302.75782099,0.00019089,2]
[388724546,1759336615560,169.49,0.00019099,2]
[388724547,1759336636227,3914.13124204,0.00019078,2]
[388724548,1759336636252,7945.84191869,0.00019078,2]
[388724549,1759336660495,2054.16808131,0.00019099,2]
[388724550,1759336660518,2945.83191869,0.00019099,2]
[388724551,1759336661592,302.78807257,0.000189,2]
[388724552,1759336661649,302.78807257,0.00019089,2]
[388724554,1759336683998,5000.0,0.00019099,2]
[388724555,1759336707343,1448.60193617,0.00019099,2]
[388724556,1759336707367,3551.39806383,0.00019099,2]
[388724558,1759336729766,5000.0,0.00019099,2]
[388724560,1759336742293,666.0,0.00018233,2]
[388724561,1759336752134,782.61193617,0.00019099,2]
[388724562,1759336752155,4217.38806383,0.00019099,2]
[388724563,1759336775315,5000.0,0.00019099,2]
[388724564,1759336793807,782.62193617,0.00019078,2]
[388724565,1759336793829,10000.01,0.00019078,2]
[388724566,1759336793850,10000.01,0.00019078,2]
[388724567,1759336793874,10000.01,0.00019078,2]
[388724568,1759336793898,10000.01,0.00019078,2]
[388724569,1759336793920,10000.01,0.00019078,2]
[388724570,1759336793945,10000.01,0.00019078,2]
[388724571,1759336793979,10000.01,0.00019078,2]
[388724572,1759336794001,10000.01,0.00019078,2]
[388724573,1759336794023,4405.0970145,0.00019078,2]
[388724574,1759336798214,5000.0,0.00019099,2]
[388724575,1759336821140,5000.0,0.00019099,2]
[388724576,1759336823492,217.92460577,0.00019,2]
[388724577,1759336829076,413.25000565,0.00019099,2]
[388724578,1759336845517,4368.83538858,0.00019099,2]
[388724579,1759336845540,631.16461142,0.00019099,2]
[388724581,1759336869140,5000.0,0.00019099,2]
[388724582,1759336891846,4368.84538858,0.00019099,2]
[388724583,1759336891869,631.15461142,0.00019099,2]
[388724584,1759336898129,1048.558109,0.00018177,2]
[388724587,1759336915255,5000.0,0.00019099,2]
[388724588,1759336916412,2149.0826396,0.00018177,2]
[388724589,1759336924992,204.8013467,0.00019,2]
[388724590,1759336930523,539.16440534,0.00019099,2]
[388724591,1759336938414,427.24888794,0.00019099,2]
[388724592,1759336938436,4572.75111206,0.00019099,2]
[388724593,1759336961953,5000.0,0.00019099,2]
[388724594,1759336969849,427.25888794,0.00019099,2]
[388724595,1759336969870,4572.74111206,0.00019099,2]
[388724596,1759336977945,5000.0,0.00019099,2]
[388724597,1759336982113,427.26888794,0.00017974,2]
[388724598,1759336982136,1004.17837242,0.00017974,2]
[388724599,1759336982488,1431.44726036,0.00018252,2]
[388724600,1759336983074,1431.44726036,0.00018628,2]
[388724601,1759336983365,1431.44726036,0.00018673,2]
[388724602,1759336983652,1431.44726038,0.0001904,2]
[388724603,1759336985764,3270.04258612,0.00019099,2]
[388724604,1759336985787,1729.95741388,0.00019099,2]
[388724606,1759336994561,424.32038124,0.00019099,2]
[388724610,1759337002410,2028.68981279,0.00019099,2]
[388724612,1759337010576,5000.0,0.00019099,2]
[388724621,1759337030220,167.471281,9.088e-05,2]
[388724622,1759337030502,167.471281,0.00012118,2]
[388724623,1759337030708,167.471281,0.00015147,2]
[388724624,1759337030911,167.471281,0.00018177,2]
[388724626,1759337032850,147.15726809,0.00019099,2]
[388724627,1759337032870,4852.84273191,0.00019099,2]
[388724630,1759337055844,5000.0,0.00019099,2]
[388724631,1759337064245,147.16726809,0.00019099,2]
[388724632,1759337064270,229.2139605,0.00019099,2]
[388724634,1759337079320,2358.2792056,0.00018177,2]
[388724635,1759337080053,5000.0,0.00019099,2]
[388724636,1759337081123,2412.5168339,0.00018379,2]
[388724637,1759337081144,10000.01,0.00018379,2]
[388724638,1759337081167,10000.01,0.00018379,2]
[388724639,1759337081189,10000.01,0.00018379,2]
[388724640,1759337081210,10000.01,0.00018379,2]
[388724641,1759337081233,9404.882707,0.00018379,2]
[388724644,1759337102576,5000.0,0.00019099,2]
[388724647,1759337123009,5000.01,0.00019078,2]
[388724648,1759337123031,10000.01,0.00019078,2]
[388724649,1759337123054,10000.01,0.00019078,2]
[388724650,1759337123077,10000.01,0.00019078,2]
[388724651,1759337123100,10000.01,0.00019078,2]
[388724652,1759337123123,10000.01,0.00019078,2]
[388724653,1759337123145,10000.01,0.00019078,2]
[388724654,1759337123172,26344.41282924,0.00019078,2]
[388724655,1759337125725,5000.0,0.00019079,2]
[388724657,1759337147981,5000.0,0.00019079,2]
[388724659,1759337178732,5000.0,0.00019079,2]
[388724660,1759337182978,683.9397496,0.00018999,2]
[388724661,1759337194282,800.0,0.00018936,2]
[388724662,1759337194322,800.0,0.00018917,2]
[388724663,1759337194648,800.0,0.00019022,2]
[388724664,1759337194697,800.0,0.0001905,2]
[388724665,1759337201110,5000.0,0.00019079,2]
[388724666,1759337206567,205.39,0.000189,2]
[388724669,1759337223489,5000.0,0.00019079,2]
[388724670,1759337246122,-300.0,0.00019098,2]
[388724671,1759337246142,-1200.0,0.00019098,2]
[388724672,1759337246163,-1158.91830819,0.00019099,2]
[388724673,1759337246183,-1200.0,0.00019099,2]
[388724674,1759337246201,-300.0,0.000191,2]
[388724675,1759337246220,-300.0,0.000191,2]
[388724676,1759337246239,-300.0,0.000191,2]
[388724677,1759337246258,-300.0,0.000191,2]
[388724678,1759337246278,-300.0,0.000191,2]
[388724679,1759337246296,-300.0,0.000191,2]
[388724680,1759337246314,-300.0,0.000191,2]
[388724681,1759337246333,-300.0,0.000191,2]
[388724682,1759337246351,-800.0,0.0001912,2]
[388724683,1759337246370,-390.23,0.00019168,3]
[388724684,1759337246389,-195.11,0.00019168,3]
[388724685,1759337246408,-585.38,0.00019168,3]
[388724686,1759337246428,-491.74,0.00019168,3]
[388724687,1759337246447,-500.0,0.00019177,2]
[388724688,1759337246465,-90.12614009,0.00019177,2]
[388724689,1759337246484,-500.0,0.00019177,2]
[388724690,1759337246502,-500.0,0.00019177,2]
[388724691,1759337246521,-500.0,0.00019177,2]
[388724692,1759337246547,-500.0,0.00019177,2]
[388724693,1759337246567,-500.0,0.00019177,2]
[388724694,1759337246588,-500.0,0.00019177,2]
[388724695,1759337246608,-500.0,0.00019177,2]
[388724696,1759337246630,-549.28832593,0.00019177,2]
[388724697,1759337246649,-283.08412881,0.00019177,2]
[388724698,1759337246668,-341.22253992,0.00019177,2]
[388724699,1759337246686,-235.32410774,0.00019177,2]
[388724700,1759337246705,-500.0,0.00019177,2]
[388724701,1759337246724,-500.0,0.00019177,2]
[388724702,1759337246753,-500.0,0.00019177,2]
[388724703,1759337246775,-500.0,0.00019177,2]
[388724704,1759337246794,-500.0,0.00019177,2]
[388724705,1759337246814,-500.0,0.00019177,2]
[388724706,1759337246834,-500.0,0.00019177,2]
[388724707,1759337246855,-500.0,0.00019177,2]
[388724708,1759337246874,-500.0,0.00019177,2]
[388724709,1759337246895,-500.0,0.00019177,2]
[388724710,1759337246916,-217.07576518,0.00019177,2]
[388724711,1759337246937,-500.0,0.00019177,2]
[388724712,1759337246956,-500.0,0.00019177,2]
[388724713,1759337246976,-254.95356027,0.00019177,2]
[388724714,1759337246996,-500.0,0.00019177,2]
[388724715,1759337247017,-500.0,0.00019177,2]
[388724716,1759337247038,-500.0,0.00019177,2]
[388724717,1759337247058,-177.82243983,0.00019177,2]
[388724718,1759337247078,-500.0,0.00019177,2]
[388724719,1759337247098,-500.0,0.00019177,2]
[388724720,1759337247119,-500.0,0.00019177,2]
[388724721,1759337247140,-500.0,0.00019177,2]
[388724722,1759337247162,-500.0,0.00019177,2]
[388724723,1759337247182,-500.0,0.00019177,2]
[388724724,1759337247201,-500.0,0.00019177,2]
[388724725,1759337247221,-500.0,0.00019177,2]
[388724726,1759337247241,-500.0,0.00019177,2]
[388724727,1759337247261,-500.0,0.00019177,2]
[388724728,1759337247281,-500.0,0.00019177,2]
[388724729,1759337247301,-500.0,0.00019177,2]
[388724730,1759337247323,-500.0,0.00019177,2]
[388724731,1759337247342,-500.0,0.00019177,2]
[388724732,1759337247361,-500.0,0.00019177,2]
[388724733,1759337247381,-500.0,0.00019177,2]
[388724734,1759337247401,-500.0,0.00019177,2]
[388724735,1759337247420,-500.0,0.00019177,2]
[388724736,1759337247441,-500.0,0.00019177,2]
[388724737,1759337247461,-300.0,0.00019177,2]
[388724738,1759337247480,-500.0,0.00019177,2]
[388724739,1759337247499,-500.0,0.00019177,2]
[388724740,1759337247518,-543.82018499,0.00019177,2]
[388724741,1759337247542,-500.0,0.00019177,2]
[388724742,1759337247562,-500.0,0.00019177,2]
[388724743,1759337247780,-500.0,0.00019177,2]
[388724744,1759337247802,-500.0,0.00019177,2]
[388724745,1759337247822,-500.0,0.00019177,2]
[388724746,1759337247842,-242.82385993,0.00019177,2]
[388724747,1759337247867,-500.0,0.00019177,2]
[388724748,1759337247886,-500.0,0.00019178,2]
[388724749,1759337247905,-167.21951566,0.00019178,2]
[388724750,1759337247925,-500.0,0.00019178,2]
[388724751,1759337247944,-500.0,0.00019178,2]
[388724752,1759337247963,-480.0,0.00019178,2]
[388724753,1759337247982,-500.0,0.00019178,2]
[388724754,1759337248001,-480.0,0.00019178,2]
[388724755,1759337248021,-480.0,0.00019178,2]
[388724756,1759337248041,-480.0,0.00019178,2]
[388724757,1759337248060,-500.0,0.00019178,2]
[388724758,1759337248079,-500.0,0.00019178,2]
[388724759,1759337248098,-500.0,0.00019178,2]
[388724760,1759337248116,-500.0,0.00019178,2]
[388724761,1759337248135,-205.49,0.00019178,2]
[388724762,1759337248153,-500.0,0.00019178,2]
[388724763,1759337248173,-421.15,0.00019178,2]
[388724764,1759337248192,-401.66,0.00019178,2]
[388724765,1759337248211,-500.0,0.00019178,2]
[388724766,1759337248231,-480.0,0.00019178,2]
[388724767,1759337248250,-500.0,0.00019178,2]
[388724768,1759337248269,-500.0,0.00019178,2]
[388724769,1759337248288,-599.04,0.00019178,2]
[388724770,1759337248306,-500.0,0.00019178,2]
[388724771,1759337248325,-500.0,0.00019178,2]
[388724772,1759337248344,-500.0,0.00019178,2]
[388724773,1759337248363,-500.0,0.00019178,2]
[388724774,1759337248383,-500.0,0.00019178,2]
[388724775,1759337248404,-500.0,0.00019178,2]
[388724776,1759337248423,-500.0,0.00019178,2]
[388724777,1759337248443,-500.0,0.00019178,2]
[388724778,1759337248463,-500.0,0.00019178,2]
[388724779,1759337248481,-500.0,0.00019178,2]
[388724780,1759337248501,-500.0,0.00019178,2]
[388724781,1759337248521,-500.0,0.00019178,2]
[388724782,1759337248545,-500.0,0.00019178,2]
[388724783,1759337248564,-500.0,0.00019178,2]
[388724784,1759337248585,-500.0,0.00019178,2]
[388724785,1759337248605,-250.45,0.00019178,2]
[388724786,1759337248624,-480.0,0.00019178,2]
[388724787,1759337248643,-500.0,0.00019178,2]